fUSD/lending_fUSD_20240101
["ID","MTS","AMOUNT","RATE_DAILY","PERIOD"]
[309752610,1704079838644,-500.0,0.000342,2]
[309752611,1704079838654,-333.33333,0.00034298,2]
[309752612,1704079838664,-156.59378187,0.00034298,2]
[309752613,1704079838674,-333.33333,0.00034398,2]
[309752614,1704079838683,-187.9921,0.00034398,2]
[309752615,1704079838693,-500.0,0.00034398,2]
[309752616,1704079838702,-53441.0738,0.00034398,2]
[309752617,1704079838712,-26317.1565,0.00034398,2]
[309752618,1704079838724,-159.6,0.00034439,2]
[309752619,1704079838734,-333.33333,0.00034498,2]
[309752620,1704079838743,-495.62026608,0.00034549,4]
[309752621,1704079838752,-333.33333,0.00034598,2]
[309752622,1704079838761,-157.9,0.00034621,2]
[309752623,1704079838770,-244.25262079,0.00034635,7]
[309752624,1704079838779,-180.0,0.00034658,2]
[309752625,1704079838789,-333.33333,0.00034698,2]
[309752626,1704079838799,-152.89,0.0003472,2]
[309752627,1704079838808,-333.33333,0.00034798,2]
[309752628,1704079838818,-475.31,0.00034834,2]
[309752629,1704079838827,-3391.72454498,0.00034897,4]
[309752630,1704079838836,-1858.54071008,0.00034898,4]
[309752631,1704079838870,-4155.69487704,0.00034898,4]
[309752632,1704079838882,-2529.00075532,0.00034898,4]
[309752633,1704079838894,-20764.07055718,0.00034898,4]
[309752634,1704079838903,-2568.17394833,0.00034898,4]
[309752635,1704079838913,-277.57919509,0.00034898,4]
[309752636,1704079838922,-2003.9548964,0.00034898,4]
[309752637,1704079838931,-333.33333,0.00034898,2]
[309752638,1704079838940,-854.04399478,0.00034899,4]
[309752639,1704079838950,-322.19493019,0.00034899,4]
[309752640,1704079838959,-667.31187689,0.00034899,4]
[309752641,1704079838971,-284.9548467,0.00034899,4]
[309752642,1704079838980,-1278.50668,0.00034899,2]
[309752643,1704079838989,-150.403545,0.000349,2]
[309752644,1704079838998,-2000.0,0.000349,2]
[309752645,1704079839006,-200.0,0.000349,2]
[309752646,1704079839016,-2000.0,0.000349,2]
[309752647,1704079839025,-10322.82,0.000349,2]
[309752648,1704079839034,-200.0,0.000349,2]
[309752649,1704079839045,-155.0,0.000349,2]
[309752650,1704079839055,-252.97551603,0.000349,4]
[309752651,1704079839065,-600.0,0.000349,12]
[309752652,1704079839074,-167.16657,0.000349,2]
[309752653,1704079839083,-1808.419388,0.00034931,2]
[309752654,1704079839091,-159.6,0.00034986,2]
[309752655,1704079839100,-333.33333,0.00034998,2]
[309752656,1704079839109,-2260.524235,0.00035068,2]
[309752657,1704079839119,-333.33333,0.00035098,2]
[309752658,1704079839129,-150.0,0.00035103,2]
[309752659,1704079839138,-159.59,0.00035125,2]
[309752660,1704079839147,-198.86,0.00035161,2]
[309752661,1704079839157,-333.33333,0.00035198,2]
[309752662,1704079839166,-300.0,0.00035246,2]
[309752663,1704079839176,-313.01,0.00035246,2]
[309752664,1704079839185,-829.87,0.00035246,2]
[309752665,1704079839195,-519.94,0.00035246,2]
[309752666,1704079839204,-813.4,0.00035246,2]
[309752667,1704079839214,-519.94,0.00035246,2]
[309752668,1704079839225,-313.15,0.00035246,2]
[309752669,1704079839235,-519.94,0.00035246,2]
[309752670,1704079839246,-406.7,0.00035246,2]
[309752671,1704079839256,-406.7,0.00035246,2]
[309752672,1704079839265,-313.15,0.00035246,2]
[309752673,1704079839274,-519.94,0.00035246,2]
[309752674,1704079839284,-406.7,0.00035246,2]
[309752675,1704079839294,-519.94,0.00035246,2]
[309752676,1704079839304,-313.15,0.00035246,2]
[309752677,1704079839314,-406.7,0.00035246,2]
[309752678,1704079839324,-313.15,0.00035246,2]
[309752679,1704079839333,-519.94,0.00035246,2]
[309752680,1704079839342,-406.7,0.00035246,2]
[309752681,1704079839352,-519.94,0.00035246,2]
[309752682,1704079839361,-313.15,0.00035246,2]
[309752683,1704079839370,-406.7,0.00035246,2]
[309752684,1704079839380,-313.15,0.00035246,2]
[309752685,1704079839389,-519.94,0.00035246,2]
[309752686,1704079839398,-406.7,0.00035246,2]
[309752687,1704079839407,-313.15,0.00035246,2]
[309752688,1704079839416,-519.94,0.00035246,2]
[309752689,1704079839425,-834.7114537,0.00035249,2]
[309752690,1704079839434,-200.0,0.00035249,2]
[309752691,1704079839443,-2000.0,0.00035249,2]
[309752692,1704079839452,-200.0,0.00035249,2]
[309752693,1704079839642,-473.08,0.0003526,2]
[309752694,1704079839652,-333.33333,0.00035298,2]
[309752695,1704079839661,-500.0,0.00035331,2]
[309752696,1704079839670,-3164.733929,0.00035342,2]
[309752697,1704079839679,-159.59,0.00035362,2]
[309752698,1704079839691,-333.33333,0.00035398,2]
[309752699,1704079839700,-1052.725412,0.00035481,2]
[309752700,1704079839710,-244.25262079,0.00035481,7]
[309752701,1704079839720,-333.33333,0.00035498,2]
[309752702,1704079839729,-40025.7882065,0.00035515,2]
[309752703,1704079839739,-2578.44700517,0.00035516,2]
[309752704,1704079839752,-1359.94909029,0.00035516,2]
[309752705,1704079839763,-2430.47060454,0.00035516,2]
[309752706,1704079839773,-5830.2609,0.00035516,2]
[309752707,1704079839783,-219.467053,0.00035516,7]
[309752708,1704079839792,-151.0,0.00035516,7]
[309752709,1704079839802,-183.243423,0.00035516,7]
[309752710,1704079839811,-151.0,0.00035516,7]
[309752711,1704079839821,-173.051846,0.00035516,7]
[309752712,1704079839831,-151.0,0.00035516,7]
[309752713,1704079839841,-151.0,0.00035516,7]
[309752714,1704079839850,-151.0,0.00035516,7]
[309752715,1704079839860,-151.0,0.00035516,7]
[309752716,1704079839869,-182.244959,0.00035516,7]
[309752717,1704079839878,-55555.0,0.00035516,3]
[309752718,1704079839887,-151.0,0.00035516,7]
[309752719,1704079839895,-265.722297,0.00035516,7]
[309752720,1704079839904,-151.0,0.00035516,7]
[309752721,1704079839913,-151.0,0.00035516,7]
[309752722,1704079839922,-151.0,0.00035516,7]
[309752723,1704079839931,-159.6,0.00035532,2]
[309752724,1704079839940,-151.0,0.00035564,7]
[309752725,1704079839949,-526.92,0.00035564,2]
[309752726,1704079839959,-219.08,0.00035574,2]
[309752727,1704079839970,-500.0,0.00035593,2]
[309752728,1704079839979,-333.33333,0.00035598,2]
[309752729,1704079839988,-159.59,0.00035599,2]
[309752730,1704079839997,-200.0,0.00035601,2]
[309752731,1704079840007,-2000.0,0.00035601,2]
[309752732,1704079840016,-200.0,0.00035601,2]
[309752733,1704079840025,-166.776148,0.00035601,7]
[309752734,1704079840034,-151.0,0.00035601,7]
[309752735,1704079840043,-158.564996,0.00035614,7]
[309752736,1704079840055,-151.02976244,0.00035615,2]
[309752737,1704079840064,-251.90889813,0.00035615,2]
[309752738,1704079840073,-151.0,0.00035616,7]
[309752739,1704079840083,-151.0,0.00035616,7]
[309752740,1704079840092,-151.0,0.00035616,7]
[309752741,1704079840105,-151.0,0.00035616,7]
[309752742,1704079840114,-162.510542,0.00035616,7]
[309752743,1704079840123,-193.118046,0.00035616,7]
[309752744,1704079840132,-151.0,0.00035616,7]
[309752745,1704079840142,-151.0,0.00035616,7]
[309752746,1704079840151,-151.0,0.00035616,7]
[309752747,1704079840161,-151.0,0.00035616,7]
[309752748,1704079840171,-165.572678,0.00035616,7]
[309752749,1704079840181,-151.0,0.00035616,7]
[309752750,1704079840190,-216.022618,0.00035616,7]
[309752751,1704079840199,-219.033983,0.00035616,7]
[309752752,1704079840208,-151.0,0.00035616,7]
[309752753,1704079840218,-275.748109,0.00035616,7]
[309752754,1704079840227,-185.510819,0.00035616,7]
[309752755,1704079840236,-151.0,0.00035616,7]
[309752756,1704079840245,-151.0,0.00035616,7]
[309752757,1704079840254,-151.0,0.00035616,7]
[309752758,1704079840264,-151.0,0.00035616,7]
[309752759,1704079840273,-151.0,0.00035616,7]
[309752760,1704079840282,-151.0,0.00035616,7]
[309752761,1704079840291,-199.502976,0.00035616,7]
[309752762,1704079840301,-1000.0,0.00035616,2]
[309752763,1704079840310,-500.0,0.00035616,2]
[309752764,1704079840319,-500.0,0.00035616,2]
[309752765,1704079840329,-500.0,0.00035616,2]
[309752766,1704079840339,-500.0,0.00035616,2]
[309752767,1704079840348,-556.6659128,0.00035616,2]
[309752768,1704079840357,-500.0,0.00035616,2]
[309752769,1704079840366,-500.0,0.00035616,2]
[309752770,1704079840376,-231.08379222,0.00035616,2]
[309752771,1704079840385,-521.74474923,0.00035616,2]
[309752772,1704079840394,-500.0,0.00035616,2]
[309752774,1704079840403,-562.25829914,0.00035616,2]
[309752775,1704079840412,-500.0,0.00035616,2]
[309752777,1704079840421,-181.71099381,0.00035616,2]
[309752779,1704079840431,-514.36699929,0.00035616,2]
[309752781,1704079840440,-500.0,0.00035616,2]
[309752783,1704079840450,-542.69297403,0.00035616,2]
[309752784,1704079840460,-498.33787658,0.00035616,2]
[309752785,1704079840470,-500.0,0.00035616,2]
[309752786,1704079840478,-500.0,0.00035616,2]
[309752787,1704079840489,-500.0,0.00035616,2]
[309752788,1704079840499,-600.38268632,0.00035616,2]
[309752789,1704079840510,-500.0,0.00035616,2]
[309752790,1704079840520,-556.48652537,0.00035616,2]
[309752791,1704079840529,-85.34595754,0.00035616,2]
[309752792,1704079840556,-414.65404246,0.00035616,2]
[309752793,1704079840566,-159.80744676,0.00035616,2]
[309752794,1704079840580,-379.95452592,0.00035616,2]
[309752795,1704079840589,-500.0,0.00035616,2]
[309752796,1704079840599,-112.33066984,0.00035616,2]
[309752797,1704079840610,-387.66933016,0.00035616,2]
[309752798,1704079840619,-517.02918646,0.00035616,2]
[309752799,1704079840629,-134.72921297,0.00035616,2]
[309752800,1704079840842,-327.93001,0.00035516,7]
[309752801,1704079841208,-32.818572,0.00035516,7]
[309752802,1704079841220,-360.748582,0.00035616,7]
[309752803,1704079841230,-360.748582,0.00035616,7]
[309752804,1704079841241,-360.748582,0.00035616,7]
[309752805,1704079841250,-365.27078703,0.00035616,2]
[309752806,1704079841260,-500.0,0.00035616,2]
[309752807,1704079841270,-330.80080966,0.00035616,2]
[309752808,1704079841279,-500.0,0.00035616,2]
[309752809,1704079841289,-500.0,0.00035616,2]
[309752810,1704079841298,-500.0,0.00035616,2]
[309752811,1704079841307,-500.0,0.00035616,2]
[309752812,1704079841317,-500.0,0.00035616,2]
[309752813,1704079841327,-365.46353839,0.00035616,2]
[309752814,1704079841336,-561.51141664,0.00035616,2]
[309752815,1704079841345,-552.65519251,0.00035616,2]
[309752816,1704079841355,-603.95990547,0.00035616,2]
[309752817,1704079841365,-529.64628572,0.00035616,2]
[309752818,1704079841375,-557.81299204,0.00035616,2]
[309752819,1704079841384,-500.0,0.00035616,2]
[309752820,1704079841393,-155.98226935,0.00035616,2]
[309752821,1704079841404,-500.0,0.00035616,2]
[309752822,1704079841413,-500.65755328,0.00035616,2]
[309752823,1704079841423,-500.0,0.00035616,2]
[309752824,1704079841432,-500.0,0.00035616,2]
[309752825,1704079841443,-500.0,0.00035616,2]
[309752826,1704079841452,-298.50472111,0.00035616,2]
[309752827,1704079841462,-500.0,0.00035616,2]
[309752828,1704079841474,-501.16630119,0.00035616,2]
[309752829,1704079841483,-500.0,0.00035616,2]
[309752830,1704079841493,-500.0,0.00035616,2]
[309752831,1704079841501,-500.0,0.00035616,2]
[309752832,1704079841510,-500.0,0.00035616,2]
[309752833,1704079841519,-500.0,0.00035616,2]
[309752834,1704079841528,-500.0,0.00035616,2]
[309752835,1704079841539,-511.34634155,0.00035616,2]
[309752836,1704079841549,-500.0,0.00035616,2]
[309752837,1704079841559,-500.0,0.00035616,2]
[309752838,1704079841569,-500.0,0.00035616,2]
[309752839,1704079841579,-500.0,0.00035616,2]
[309752840,1704079841588,-500.0,0.00035616,2]
[309752841,1704079841597,-500.0,0.00035616,2]
[309752842,1704079841607,-507.32200139,0.00035616,2]
[309752843,1704079841617,-500.0,0.00035616,2]
[309752844,1704079841626,-500.0,0.00035616,2]
[309752845,1704079841636,-507.95699926,0.00035616,2]
[309752846,1704079841646,-501.08,0.00035616,2]
[309752847,1704079841656,-505.36236324,0.00035616,2]
[309752848,1704079841665,-569.54756233,0.00035616,2]
[309752849,1704079841674,-445.02527478,0.00035616,2]
[309752850,1704079841688,-674.61079717,0.00035616,2]
[309752851,1704079841698,-500.0,0.00035616,2]
[309752852,1704079841707,-538.74440922,0.00035616,2]
[309752853,1704079841717,-500.0,0.00035616,2]
[309752854,1704079841728,-500.0,0.00035616,2]
[309752855,1704079841737,-566.78454158,0.00035616,2]
[309752856,1704079841746,-319.33545956,0.00035616,2]
[309752857,1704079841762,-230.98448096,0.00035616,2]
[309752858,1704079841772,-523.9530293,0.00035616,2]
[309752859,1704079841781,-524.48301697,0.00035616,2]
[309752860,1704079841791,-500.0,0.00035616,2]
[309752861,1704079841800,-500.0,0.00035616,2]
[309752862,1704079841810,-500.0,0.00035616,2]
[309752863,1704079841819,-521.49466964,0.00035616,2]
[309752864,1704079841828,-515.51413386,0.00035616,2]
[309752865,1704079841838,-514.94762566,0.00035616,2]
[309752866,1704079841847,-500.0,0.00035616,2]
[309752867,1704079841857,-500.0,0.00035616,2]
[309752868,1704079841866,-500.0,0.00035616,2]
[309752869,1704079841876,-500.0,0.00035616,2]
[309752870,1704079841886,-163.87309171,0.00035616,2]
[309752871,1704079841895,-500.0,0.00035616,2]
[309752872,1704079841904,-500.0,0.00035616,2]
[309752873,1704079841914,-500.0,0.00035616,2]
[309752874,1704079841924,-500.0,0.00035616,2]
[309752875,1704079841933,-500.0,0.00035616,2]
[309752876,1704079841943,-500.0,0.00035616,2]
[309752877,1704079841952,-306.18478707,0.00035616,2]
[309752878,1704079841961,-158.17924066,0.00035616,2]
[309752879,1704079841971,-522.38,0.00035616,2]
[309752880,1704079841981,-534.28541039,0.00035616,2]
[309752881,1704079841990,-464.90995663,0.00035616,2]
[309752882,1704079842003,-35.09004337,0.00035616,2]
[309752883,1704079842012,-500.0,0.00035616,2]
[309752884,1704079842021,-500.0,0.00035616,2]
[309752885,1704079842032,-500.0,0.00035616,2]
[309752886,1704079842041,-333.76894353,0.00035616,2]
[309752887,1704079842055,-504.34547693,0.00035616,2]
[309752888,1704079842065,-500.0,0.00035616,2]
[309752889,1704079842075,-500.0,0.00035616,2]
[309752890,1704079842085,-500.0,0.00035616,2]
[309752891,1704079842094,-500.0,0.00035616,2]
[309752892,1704079842105,-515.80009601,0.00035616,2]
[309752893,1704079842116,-500.0,0.00035616,2]
[309752894,1704079842125,-175.52561287,0.00035616,2]
[309752895,1704079842245,-324.47438713,0.00035616,2]
[309752896,1704079842255,-500.0,0.00035616,2]
[309752897,1704079842264,-500.0,0.00035616,2]
[309752898,1704079842273,-312.66806873,0.00035616,2]
[309752899,1704079842290,-187.33193127,0.00035616,2]
[309752900,1704079842299,-500.0,0.00035616,2]
[309752901,1704079842308,-403.62506873,0.00035616,2]
[309752902,1704079842886,-96.37065625,0.00035616,2]
[309752903,1704079842896,-517.87633194,0.00035616,2]
[309752904,1704079842905,-500.0,0.00035616,2]
[309752905,1704079842914,-500.0,0.00035616,2]
[309752906,1704079842924,-500.0,0.00035616,2]
[309752907,1704079842933,-500.0,0.00035616,2]
[309752908,1704079842943,-500.0,0.00035616,2]
[309752909,1704079842953,-500.0,0.00035616,2]
[309752910,1704079842962,-310.75302181,0.00035616,2]
[309752911,1704079842977,-228.88172699,0.00035616,2]
[309752912,1704079842986,-500.0,0.00035616,2]
[309752913,1704079842996,-500.0,0.00035616,2]
[309752914,1704079843005,-500.0,0.00035616,2]
[309752915,1704079843015,-572.19255227,0.00035616,2]
[309752916,1704079843024,-522.206731,0.00035616,2]
[309752917,1704079843034,-533.446307,0.00035616,2]
[309752918,1704079843043,-543.43776437,0.00035616,2]
[309752919,1704079843055,-525.1559939,0.00035616,2]
[309752920,1704079843064,-536.92043895,0.00035616,2]
[309752921,1704079843074,-500.0,0.00035616,2]
[309752922,1704079843083,-500.0,0.00035616,2]
[309752923,1704079843094,-539.66625739,0.00035616,2]
[309752924,1704079843104,-310.10379462,0.00035616,2]
[309752925,1704079843118,-2.34978555,0.00035616,2]
[309752926,1704079843129,-500.0,0.00035616,2]
[309752927,1704079843139,-500.0,0.00035616,2]
[309752928,1704079843150,-338.95875811,0.00035616,2]
[309752929,1704079843159,-527.6748065,0.00035616,2]
[309752930,1704079843171,-506.28828893,0.00035616,2]
[309752931,1704079843180,-537.00446152,0.00035616,2]
[309752932,1704079843190,-500.0,0.00035616,2]
[309752933,1704079843201,-382.32365507,0.00035616,2]
[309752934,1704079843213,-134.3382761,0.00035616,2]
[309752935,1704079843224,-486.04523651,0.00035616,2]
[309752936,1704079843235,-40.77583745,0.00035616,2]
[309752937,1704079843244,-260.25092114,0.00035616,2]
[309752938,1704079843256,-239.74907886,0.00035616,2]
[309752939,1704079843266,-548.31676419,0.00035616,2]
[309752940,1704079843275,-533.45447292,0.00035616,2]
[309752941,1704079843285,-357.3165992,0.00035616,2]
[309752942,1704079843298,-142.6834008,0.00035616,2]
[309752943,1704079843308,-500.0,0.00035616,2]
[309752944,1704079843319,-616.5392209,0.00035616,2]
[309752945,1704079843328,-276.0367269,0.00035616,2]
[309752946,1704079843341,-252.11409055,0.00035616,2]
[309752947,1704079843351,-564.99523198,0.00035616,2]
[309752948,1704079843361,-500.0,0.00035616,2]
[309752949,1704079843370,-500.0,0.00035616,2]
[309752950,1704079843380,-420.19467088,0.00035616,2]
[309752951,1704079843408,-89.18945874,0.00035616,2]
[309752952,1704079843417,-363.32912707,0.00035616,2]
[309752953,1704079843429,-136.67087293,0.00035616,2]
[309752954,1704079843439,-305.58027833,0.00035616,2]
[309752955,1704079843452,-220.03595161,0.00035616,2]
[309752956,1704079843461,-126.07571857,0.00035616,2]
[309752957,1704079843474,-408.67802525,0.00035616,2]
[309752958,1704079843483,-500.0,0.00035616,2]
[309752959,1704079843492,-562.43603178,0.00035616,2]
[309752960,1704079843501,-500.0,0.00035616,2]
[309752961,1704079843512,-500.0,0.00035616,2]
[309752962,1704079843523,-520.09988487,0.00035616,2]
[309752963,1704079843533,-500.0,0.00035616,2]
[309752964,1704079843542,-500.0,0.00035616,2]
[309752965,1704079843551,-500.0,0.00035616,2]
[309752966,1704079843562,-500.0,0.00035616,2]
[309752967,1704079843572,-529.72117415,0.00035616,2]
[309752968,1704079843582,-528.65476926,0.00035616,2]
[309752969,1704079843591,-500.0,0.00035616,2]
[309752970,1704079843746,-500.0,0.00035616,2]
[309752971,1704079843756,-500.0,0.00035616,2]
[309752972,1704079843764,-500.0,0.00035616,2]
[309752973,1704079843774,-500.0,0.00035616,2]
[309752974,1704079843783,-500.0,0.00035616,2]
[309752975,1704079843792,-500.0,0.00035616,2]
[309752976,1704079843802,-500.0,0.00035616,2]
[309752977,1704079843811,-552.77673174,0.00035616,2]
[309752978,1704079843820,-500.0,0.00035616,2]
[309752979,1704079843830,-603.72807147,0.00035616,2]
[309752980,1704079843839,-446.28718832,0.00035616,2]
[309752981,1704079843881,-53.71281168,0.00035616,2]
[309752982,1704079843890,-256.17646413,0.00035616,2]
[309752983,1704079843901,-393.27353587,0.00035616,2]
[309752984,1704079843910,-456.72646413,0.00035616,2]
[309752985,1704079843921,-161.79297739,0.00035616,2]
[309752986,1704079843930,-308.90122441,0.00035616,2]
[309752987,1704079843941,-191.09877559,0.00035616,2]
[309752988,1704079843951,-500.0,0.00035616,2]
[309752989,1704079843959,-513.40372985,0.00035616,2]
[309752990,1704079843969,-500.0,0.00035616,2]
[309752991,1704079843978,-586.92,0.00035616,2]
[309752992,1704079843987,-638.86446256,0.00035616,2]
[309752993,1704079843996,-500.0,0.00035616,2]
[309752994,1704079844005,-239.90790954,0.00035616,2]
[309752995,1704079844014,-500.0,0.00035616,2]
[309752996,1704079844023,-500.0,0.00035616,2]
[309752997,1704079844032,-283.60845989,0.00035616,2]
[309752998,1704079844043,-500.0,0.00035616,2]
[309752999,1704079844054,-189.48059218,0.00035616,2]
[309753000,1704079844063,-500.0,0.00035616,2]
[309753001,1704079844073,-500.0,0.00035616,2]
[309753002,1704079844082,-500.0,0.00035616,2]
[309753003,1704079844092,-500.0,0.00035616,2]
[309753004,1704079844101,-500.0,0.00035616,2]
[309753005,1704079844115,-500.0,0.00035616,2]
[309753006,1704079844124,-500.0,0.00035616,2]
[309753007,1704079844133,-500.0,0.00035616,2]
[309753008,1704079844143,-500.0,0.00035616,2]
[309753009,1704079844152,-542.91266267,0.00035616,2]
[309753010,1704079844161,-500.0,0.00035616,2]
[309753011,1704079844170,-584.53,0.00035616,2]
[309753012,1704079844179,-500.0,0.00035616,2]
[309753013,1704079844188,-500.0,0.00035616,2]
[309753014,1704079844197,-439.00669877,0.00035616,2]
[309753015,1704079844206,-519.50397777,0.00035616,2]
[309753016,1704079844215,-522.85113449,0.00035616,2]
[309753017,1704079844226,-500.0,0.00035616,2]
[309753018,1704079844236,-500.0,0.00035616,2]
[309753019,1704079844245,-421.49931759,0.00035616,2]
[309753020,1704079844258,-78.50068241,0.00035616,2]
[309753021,1704079844268,-500.0,0.00035616,2]
[309753022,1704079844280,-500.0,0.00035616,2]
[309753023,1704079844289,-156.73140027,0.00035616,2]
[309753024,1704079844301,-309.76968317,0.00035616,2]
[309753025,1704079844314,-33.49891656,0.00035616,2]
[309753026,1704079844324,-500.0,0.00035616,2]
[309753027,1704079844333,-553.78581453,0.00035616,2]
[309753028,1704079844342,-500.0,0.00035616,2]
[309753029,1704079844351,-500.0,0.00035616,2]
[309753030,1704079844360,-500.0,0.00035616,2]
[309753031,1704079844369,-500.0,0.00035616,2]
[309753032,1704079844378,-507.66748251,0.00035616,2]
[309753033,1704079844387,-500.0,0.00035616,2]
[309753034,1704079844396,-500.0,0.00035616,2]
[309753035,1704079844405,-451.42656193,0.00035616,2]
[309753036,1704079844418,-48.57343807,0.00035616,2]
[309753037,1704079844427,-373.34278228,0.00035616,2]
[309753038,1704079844439,-134.35369712,0.00035616,2]
[309753039,1704079844448,-500.0,0.00035616,2]
[309753040,1704079844458,-500.0,0.00035616,2]
[309753041,1704079844467,-500.0,0.00035616,2]
[309753042,1704079844477,-500.0,0.00035616,2]
[309753043,1704079844486,-500.0,0.00035616,2]
[309753044,1704079844495,-507.23596072,0.00035616,2]
[309753045,1704079844504,-500.0,0.00035616,2]
[309753046,1704079844513,-500.0,0.00035616,2]
[309753047,1704079844523,-557.52,0.00035616,2]
[309753048,1704079844534,-500.0,0.00035616,7]
[309753049,1704079844544,-584.31081869,0.00035616,2]
[309753050,1704079844554,-399.0055593,0.00035616,2]
[309753051,1704079844565,-552.41659878,0.00035616,2]
[309753052,1704079844574,-500.0,0.00035616,2]
[309753053,1704079844584,-500.0,0.00035616,2]
[309753054,1704079844593,-500.0,0.00035616,2]
[309753055,1704079844603,-518.77832401,0.00035616,2]
[309753056,1704079844613,-500.0,0.00035616,2]
[309753057,1704079844622,-500.0,0.00035616,2]
[309753058,1704079844631,-500.0,0.00035616,2]
[309753059,1704079844641,-500.0,0.00035616,2]
[309753060,1704079844650,-500.0,0.00035616,2]
[309753061,1704079844659,-500.0,0.00035616,2]
[309753062,1704079844669,-500.0,0.00035616,2]
[309753063,1704079844678,-500.0,0.00035616,2]
[309753064,1704079844687,-598.79487721,0.00035616,2]
[309753065,1704079844696,-830.54,0.00035616,2]
[309753066,1704079844705,-500.0,0.00035616,2]
[309753067,1704079844715,-575.48,0.00035616,2]
[309753068,1704079844725,-500.0,0.00035616,2]
[309753069,1704079844734,-500.0,0.00035616,2]
[309753070,1704079844743,-500.0,0.00035616,2]
[309753071,1704079844753,-500.0,0.00035616,2]
[309753072,1704079844763,-569.6781776,0.00035616,2]
[309753073,1704079844773,-558.31329722,0.00035616,2]
[309753074,1704079844783,-500.0,0.00035616,2]
[309753075,1704079844792,-683.64,0.00035616,2]
[309753076,1704079844802,-500.0,0.00035616,2]
[309753077,1704079844812,-500.0,0.00035616,2]
[309753078,1704079844821,-500.0,0.00035616,2]
[309753079,1704079844832,-567.25751131,0.00035616,2]
[309753080,1704079844841,-500.0,0.00035616,2]
[309753081,1704079844850,-500.0,0.00035616,2]
[309753082,1704079844859,-520.21,0.00035616,2]
[309753083,1704079844871,-500.0,0.00035616,2]
[309753084,1704079844880,-539.13043502,0.00035616,2]
[309753085,1704079844889,-500.0,0.00035616,2]
[309753086,1704079844900,-500.0,0.00035616,2]
[309753087,1704079844909,-500.0,0.00035616,2]
[309753088,1704079844918,-500.0,0.00035616,2]
[309753089,1704079844927,-500.0,0.00035616,2]
[309753090,1704079844937,-500.0,0.00035616,2]
[309753091,1704079844946,-500.0,0.00035616,2]
[309753092,1704079844956,-500.0,0.00035616,2]
[309753093,1704079844965,-526.52384007,0.00035616,2]
[309753094,1704079844975,-500.0,0.00035616,2]
[309753095,1704079844985,-608.27559951,0.00035616,2]
[309753096,1704079844994,-1000.0,0.00035616,2]
[309753097,1704079845003,-564.72893926,0.00035616,2]
[309753098,1704079845012,-558.73293595,0.00035616,2]
[309753099,1704079845022,-500.0,0.00035616,2]
[309753100,1704079845031,-500.0,0.00035616,2]
[309753101,1704079845041,-500.0,0.00035616,2]
[309753102,1704079845052,-500.0,0.00035616,2]
[309753103,1704079845062,-500.0,0.00035616,2]
[309753104,1704079845071,-500.0,0.00035616,2]
[309753105,1704079845080,-500.0,0.00035616,2]
[309753106,1704079845090,-500.0,0.00035616,2]
[309753107,1704079845099,-500.0,0.00035616,2]
[309753108,1704079845108,-500.0,0.00035616,2]
[309753109,1704079845118,-500.0,0.00035616,2]
[309753110,1704079845127,-500.0,0.00035616,7]
[309753111,1704079845137,-525.63343766,0.00035616,2]
[309753112,1704079845147,-500.0,0.00035616,2]
[309753113,1704079845156,-500.0,0.00035616,2]
[309753114,1704079845165,-500.0,0.00035616,2]